fUSD/lending_fUSD_20240209
["ID","MTS","AMOUNT","RATE_DAILY","PERIOD"]
[313622598,1707487204474,-500.0,0.00041643,31]
[313622599,1707487204501,-500.0,0.00041643,31]
[313622600,1707487204528,-500.0,0.00041643,31]
[313622601,1707487204557,-500.0,0.00041643,31]
[313622602,1707487204586,-500.0,0.00041643,31]
[313622603,1707487204613,-500.0,0.00041643,31]
[313622604,1707487204642,-500.0,0.00041643,31]
[313622605,1707487204670,-500.0,0.00041643,31]
[313622606,1707487204697,-538.74,0.00041643,31]
[313622607,1707487204724,-500.0,0.00041643,31]
[313622608,1707487204753,-500.0,0.00041643,31]
[313622609,1707487204782,-500.0,0.00041643,31]
[313622610,1707487204812,-500.0,0.00041643,31]
[313622611,1707487204841,-500.0,0.00041643,31]
[313622612,1707487204868,-162.22676739,0.00041643,31]
[313622613,1707487204895,-500.0,0.00041643,31]
[313622614,1707487204922,-500.0,0.00041643,31]
[313622615,1707487204950,-500.0,0.00041643,31]
[313622616,1707487204980,-500.0,0.00041643,31]
[313622617,1707487205008,-500.0,0.00041643,31]
[313622618,1707487205048,-500.0,0.00041643,31]
[313622619,1707487205077,-500.0,0.00041643,31]
[313622620,1707487205107,-500.0,0.00041643,31]
[313622621,1707487205136,-500.0,0.00041643,31]
[313622622,1707487205165,-500.0,0.00041643,31]
[313622623,1707487205196,-500.0,0.00041643,31]
[313622624,1707487205226,-791.57,0.00041643,31]
[313622625,1707487205260,-500.0,0.00041643,31]
[313622626,1707487205296,-514.45,0.00041643,31]
[313622627,1707487205330,-500.0,0.00041643,31]
[313622628,1707487205362,-500.0,0.00041643,31]
[313622629,1707487205394,-500.0,0.00041643,31]
[313622630,1707487205425,-500.0,0.00041643,31]
[313622631,1707487205455,-500.0,0.00041643,31]
[313622632,1707487205488,-500.0,0.00041643,31]
[313622633,1707487205519,-500.0,0.00041643,31]
[313622634,1707487205551,-500.0,0.00041643,31]
[313622635,1707487205582,-500.0,0.00041643,31]
[313622636,1707487205612,-500.0,0.00041643,31]
[313622637,1707487205642,-500.0,0.00041643,31]
[313622638,1707487205674,-500.0,0.00041643,31]
[313622639,1707487205706,-500.0,0.00041643,31]
[313622640,1707487205740,-500.0,0.00041643,31]
[313622641,1707487205770,-500.0,0.00041643,31]
[313622642,1707487205800,-150.0,0.00041643,31]
[313622643,1707487205830,-500.0,0.00041643,31]
[313622644,1707487205860,-882.64,0.00041643,31]
[313622645,1707487205889,-500.0,0.00041643,31]
[313622646,1707487205919,-500.0,0.00041643,31]
[313622647,1707487205949,-500.0,0.00041643,31]
[313622648,1707487205978,-500.0,0.00041643,31]
[313622649,1707487206005,-500.0,0.00041643,31]
[313622650,1707487206037,-500.0,0.00041643,31]
[313622651,1707487206066,-500.0,0.00041643,31]
[313622652,1707487206095,-500.0,0.00041643,31]
[313622653,1707487206124,-500.0,0.00041643,31]
[313622654,1707487206153,-500.0,0.00041643,31]
[313622655,1707487206183,-500.0,0.00041643,31]
[313622656,1707487206213,-500.0,0.00041643,31]
[313622657,1707487206242,-500.0,0.00041643,31]
[313622658,1707487206274,-500.0,0.00041643,31]
[313622659,1707487206306,-500.0,0.00041643,31]
[313622660,1707487206336,-500.0,0.00041643,31]
[313622661,1707487206366,-500.0,0.00041643,31]
[313622662,1707487206394,-654.43,0.00041643,31]
[313622663,1707487206422,-500.0,0.00041643,31]
[313622664,1707487206450,-500.0,0.00041643,31]
[313622665,1707487206478,-500.0,0.00041643,31]
[313622666,1707487206507,-500.0,0.00041643,31]
[313622667,1707487206537,-503.59,0.00041643,31]
[313622668,1707487206565,-500.0,0.00041643,31]
[313622669,1707487206594,-500.0,0.00041643,31]
[313622670,1707487206622,-500.0,0.00041643,31]
[313622671,1707487206651,-500.0,0.00041643,30]
[313622672,1707487206678,-500.0,0.00041643,31]
[313622673,1707487206705,-500.0,0.00041643,31]
[313622674,1707487206733,-500.0,0.00041643,31]
[313622675,1707487206761,-500.0,0.00041643,31]
[313622676,1707487206788,-500.0,0.00041643,31]
[313622677,1707487206815,-500.0,0.00041643,31]
[313622678,1707487206848,-500.0,0.00041643,31]
[313622679,1707487206877,-500.0,0.00041643,31]
[313622680,1707487206906,-500.0,0.00041643,31]
[313622681,1707487206934,-500.0,0.00041643,31]
[313622682,1707487206963,-500.0,0.00041643,31]
[313622683,1707487206991,-500.0,0.00041643,31]
[313622684,1707487207019,-556.45,0.00041643,31]
[313622685,1707487207049,-500.0,0.00041643,31]
[313622686,1707487207078,-500.0,0.00041643,31]
[313622687,1707487207277,-500.0,0.00041643,31]
[313622688,1707487207308,-500.0,0.00041643,31]
[313622689,1707487207335,-511.67725212,0.00041643,31]
[313622690,1707487207363,-500.0,0.00041643,31]
[313622691,1707487207391,-793.37,0.00041643,31]
[313622692,1707487207419,-500.0,0.00041643,31]
[313622693,1707487207447,-500.0,0.00041643,31]
[313622694,1707487207474,-348.36940216,0.00041643,31]
[313622695,1707487207502,-595.08480174,0.00041643,31]
[313622696,1707487207530,-500.0,0.00041643,31]
[313622697,1707487207566,-500.0,0.00041643,31]
[313622698,1707487207594,-767.91,0.00041643,31]
[313622699,1707487207622,-500.0,0.00041643,31]
[313622700,1707487207654,-675.64,0.00041643,31]
[313622701,1707487207682,-500.0,0.00041643,31]
[313622702,1707487207711,-500.0,0.00041643,31]
[313622703,1707487207738,-500.0,0.00041643,31]
[313622704,1707487207765,-566.47,0.00041643,31]
[313622705,1707487207795,-500.0,0.00041643,31]
[313622706,1707487207823,-959.36,0.00041643,31]
[313622707,1707487207850,-500.0,0.00041643,31]
[313622708,1707487207877,-500.0,0.00041643,31]
[313622709,1707487207905,-500.0,0.00041643,31]
[313622710,1707487207932,-500.0,0.00041643,31]
[313622711,1707487207959,-500.0,0.00041643,31]
[313622712,1707487207989,-254.0234087,0.00041643,31]
[313622713,1707487208017,-500.0,0.00041643,31]
[313622714,1707487208050,-500.0,0.00041643,31]
[313622715,1707487208077,-500.0,0.00041643,31]
[313622716,1707487208106,-906.86,0.00041643,31]
[313622717,1707487208134,-500.0,0.00041643,31]
[313622718,1707487208162,-3115.29,0.00041643,31]
[313622719,1707487208191,-500.0,0.00041643,31]
[313622720,1707487208219,-540.08,0.00041643,31]
[313622721,1707487208247,-500.0,0.00041643,31]
[313622722,1707487208278,-518.84,0.00041643,31]
[313622723,1707487208308,-518.42,0.00041643,31]
[313622724,1707487208336,-500.0,0.00041643,31]
[313622725,1707487208364,-8148.69,0.00041643,31]
[313622726,1707487208392,-181.88,0.00041643,31]
[313622727,1707487208420,-500.0,0.00041643,31]
[313622728,1707487208447,-792.43,0.00041643,31]
[313622729,1707487208475,-500.0,0.00041643,31]
[313622730,1707487208503,-500.0,0.00041643,31]
[313622731,1707487208530,-500.0,0.00041643,31]
[313622732,1707487208560,-562.48,0.00041643,31]
[313622733,1707487208589,-500.0,0.00041643,31]
[313622734,1707487208617,-2542.57,0.00041643,31]
[313622735,1707487208644,-500.0,0.00041643,31]
[313622736,1707487208670,-1246.8,0.00041643,31]
[313622737,1707487208701,-500.0,0.00041643,31]
[313622738,1707487208728,-500.0,0.00041643,31]
[313622739,1707487208755,-500.0,0.00041643,31]
[313622740,1707487208782,-776.48,0.00041643,31]
[313622741,1707487208811,-500.0,0.00041643,31]
[313622742,1707487208838,-500.0,0.00041643,31]
[313622743,1707487208866,-2162.48,0.00041643,31]
[313622744,1707487208893,-3129.95,0.00041643,31]
[313622745,1707487208921,-500.0,0.00041643,31]
[313622746,1707487208949,-677.1,0.00041643,31]
[313622747,1707487208975,-500.0,0.00041643,31]
[313622748,1707487209003,-1314.52,0.00041643,31]
[313622749,1707487209030,-1064.38,0.00041643,31]
[313622750,1707487209058,-1610.95,0.00041643,31]
[313622751,1707487209085,-500.0,0.00041643,31]
[313622752,1707487209113,-987.1,0.00041643,31]
[313622753,1707487209140,-500.0,0.00041643,31]
[313622754,1707487209168,-558.21,0.00041643,31]
[313622755,1707487209196,-500.0,0.00041643,31]
[313622756,1707487209222,-500.0,0.00041643,31]
[313622757,1707487209249,-500.0,0.00041643,31]
[313622758,1707487209283,-1288.44,0.00041643,31]
[313622759,1707487209311,-500.0,0.00041643,31]
[313622760,1707487209339,-923.0,0.00041643,31]
[313622761,1707487209366,-3513.3,0.00041643,31]
[313622762,1707487209407,-2977.12,0.00041643,31]
[313622763,1707487209446,-3585.81,0.00041643,31]
[313622764,1707487209487,-547.47993867,0.00041643,31]
[313622765,1707487209526,-4092.82,0.00041643,31]
[313622766,1707487209568,-1111.32,0.00041643,31]
[313622767,1707487209607,-500.0,0.00041643,31]
[313622768,1707487209645,-500.0,0.00041643,31]
[313622769,1707487209683,-500.0,0.00041643,31]
[313622770,1707487209722,-500.0,0.00041643,31]
[313622771,1707487209762,-810.54,0.00041643,31]
[313622772,1707487209797,-1445.78,0.00041643,31]
[313622773,1707487209834,-500.0,0.00041643,31]
[313622774,1707487209866,-1968.03,0.00041643,31]
[313622775,1707487209900,-500.0,0.00041643,31]
[313622776,1707487209935,-2143.34,0.00041643,31]
[313622777,1707487209970,-500.0,0.00041643,31]
[313622778,1707487210005,-518.71816657,0.00041643,31]
[313622779,1707487210042,-842.81,0.00041643,31]
[313622780,1707487210078,-4396.32,0.00041643,31]
[313622781,1707487210117,-500.0,0.00041643,31]
[313622782,1707487210150,-500.0,0.00041643,31]
[313622783,1707487210185,-500.0,0.00041643,31]
[313622784,1707487210221,-1531.14,0.00041643,31]
[313622785,1707487210260,-500.0,0.00041643,31]
[313622786,1707487210297,-3098.41,0.00041643,31]
[313622787,1707487210332,-500.0,0.00041643,31]
[313622788,1707487210369,-500.0,0.00041643,31]
[313622789,1707487210406,-3134.49,0.00041643,31]
[313622790,1707487210441,-500.0,0.00041643,31]
[313622791,1707487210477,-500.0,0.00041643,31]
[313622792,1707487210512,-500.0,0.00041643,31]
[313622793,1707487210547,-1285.67,0.00041643,31]
[313622794,1707487210580,-805.62,0.00041643,31]
[313622795,1707487210614,-850.45,0.00041643,31]
[313622796,1707487210648,-1725.82,0.00041643,31]
[313622797,1707487210682,-1105.94,0.00041643,31]
[313622798,1707487210714,-500.0,0.00041643,31]
[313622799,1707487210745,-500.0,0.00041643,31]
[313622800,1707487210778,-555.42,0.00041643,31]
[313622801,1707487210813,-500.0,0.00041643,31]
[313622802,1707487210846,-500.0,0.00041643,31]
[313622803,1707487210879,-600.94,0.00041643,31]
[313622804,1707487210914,-24179.07,0.00041643,31]
[313622805,1707487210949,-1181.34,0.00041643,31]
[313622806,1707487210983,-1991.35,0.00041643,31]
[313622807,1707487211015,-500.0,0.00041643,31]
[313622808,1707487211048,-500.0,0.00041643,31]
[313622809,1707487211082,-609.11,0.00041643,31]
[313622810,1707487211111,-512.04689762,0.00041643,31]
[313622811,1707487211140,-2548.88,0.00041643,31]
[313622812,1707487211167,-500.0,0.00041643,31]
[313622813,1707487211196,-500.0,0.00041643,31]
[313622814,1707487211224,-2801.13,0.00041643,31]
[313622815,1707487211251,-565.44,0.00041643,31]
[313622816,1707487211280,-804.55,0.00041643,31]
[313622817,1707487211311,-500.0,0.00041643,31]
[313622818,1707487211338,-500.0,0.00041643,31]
[313622819,1707487211366,-500.0,0.00041643,31]
[313622820,1707487211399,-500.0,0.00041643,31]
[313622821,1707487211428,-696.66,0.00041643,31]
[313622822,1707487211459,-2278.6,0.00041643,31]
[313622823,1707487211490,-1670.47,0.00041643,31]
[313622824,1707487211519,-500.0,0.00041643,31]
[313622825,1707487211547,-500.0,0.00041643,31]
[313622826,1707487211576,-2437.96,0.00041643,31]
[313622827,1707487211605,-885.62,0.00041643,31]
[313622828,1707487211632,-500.0,0.00041643,31]
[313622829,1707487211660,-1332.36,0.00041643,31]
[313622830,1707487211689,-500.0,0.00041643,31]
[313622831,1707487211717,-500.0,0.00041643,31]
[313622832,1707487211745,-651.87,0.00041643,31]
[313622833,1707487211773,-969.78,0.00041643,31]
[313622834,1707487211803,-4470.0,0.00041643,31]
[313622835,1707487212268,-1146.57,0.00041643,31]
[313622836,1707487212324,-471.43549369,0.00041643,31]
[313622837,1707487212353,-500.0,0.00041643,31]
[313622838,1707487212380,-233.48560821,0.00041643,31]
[313622839,1707487212409,-500.0,0.00041643,31]
[313622840,1707487212437,-500.0,0.00041643,31]
[313622841,1707487212466,-1928.88,0.00041643,31]
[313622842,1707487212494,-500.0,0.00041643,31]
[313622843,1707487212521,-500.0,0.00041643,31]
[313622844,1707487212551,-10078.95,0.00041643,31]
[313622845,1707487212578,-500.0,0.00041643,31]
[313622846,1707487212605,-1196.87,0.00041643,31]
[313622847,1707487212634,-4162.47,0.00041643,31]
[313622848,1707487212662,-528.54,0.00041643,31]
[313622849,1707487212690,-2259.42,0.00041643,31]
[313622850,1707487212718,-500.0,0.00041643,31]
[313622851,1707487212746,-1066.85,0.00041643,31]
[313622852,1707487212772,-222.1988829,0.00041643,31]
[313622853,1707487212801,-5424.04,0.00041643,31]
[313622854,1707487212828,-500.0,0.00041643,31]
[313622855,1707487212861,-500.0,0.00041643,31]
[313622856,1707487212889,-500.0,0.00041643,31]
[313622857,1707487212916,-1913.56,0.00041643,31]
[313622858,1707487212944,-1793.82,0.00041643,31]
[313622859,1707487212970,-500.0,0.00041643,31]
[313622860,1707487212997,-3060.13,0.00041643,31]
[313622861,1707487213023,-500.0,0.00041643,31]
[313622862,1707487213053,-500.0,0.00041643,31]
[313622863,1707487213082,-500.0,0.00041643,31]
[313622864,1707487213110,-5683.63,0.00041643,31]
[313622865,1707487213139,-1958.55,0.00041643,31]
[313622866,1707487213166,-1516.62,0.00041643,31]
[313622867,1707487213192,-652.08,0.00041643,31]
[313622868,1707487213219,-500.0,0.00041643,31]
[313622869,1707487213246,-500.0,0.00041643,31]
[313622870,1707487213273,-2458.11,0.00041643,31]
[313622871,1707487213302,-502.16,0.00041643,31]
[313622872,1707487213329,-500.0,0.00041643,31]
[313622873,1707487213358,-907.73,0.00041643,31]
[313622874,1707487213387,-4451.57,0.00041643,31]
[313622875,1707487213416,-513.10201965,0.00041643,31]
[313622876,1707487213444,-688.57,0.00041643,31]
[313622877,1707487213474,-500.0,0.00041643,31]
[313622878,1707487213503,-500.0,0.00041643,31]
[313622879,1707487213532,-3925.43,0.00041643,31]
[313622880,1707487213562,-500.0,0.00041643,31]
[313622881,1707487213589,-908.3,0.00041643,31]
[313622882,1707487213616,-500.0,0.00041643,31]
[313622883,1707487213644,-500.0,0.00041643,31]
[313622884,1707487213671,-500.0,0.00041643,31]
[313622885,1707487213698,-811.04,0.00041643,31]
[313622886,1707487213727,-287.49230012,0.00041643,31]
[313622887,1707487213755,-500.0,0.00041643,31]
[313622888,1707487213783,-2239.6,0.00041643,31]
[313622889,1707487213812,-500.0,0.00041643,31]
[313622890,1707487213840,-500.0,0.00041643,31]
[313622891,1707487213867,-500.0,0.00041643,31]
[313622892,1707487213894,-500.0,0.00041643,31]
[313622893,1707487213921,-8191.36,0.00041643,31]
[313622894,1707487213948,-13970.0,0.000419,30]
[313622895,1707487213975,-14688.72847531,0.000419,30]
[313622896,1707487214002,-635.11007206,0.00041917,30]
[313622897,1707487214029,-500.0,0.00041917,31]
[313622898,1707487214057,-513.92217611,0.00041917,31]
[313622899,1707487214084,-500.0,0.00041917,31]
[313622900,1707487214112,-500.0,0.00041917,31]
[313622901,1707487214138,-255.89335713,0.00041917,31]
[313622902,1707487214166,-500.0,0.00041917,31]
[313622903,1707487214194,-500.0,0.00041917,31]
[313622904,1707487214222,-500.0,0.00041917,31]
[313622905,1707487214249,-500.0,0.00041917,31]
[313622906,1707487214279,-579.47319669,0.00041917,31]
[313622907,1707487214308,-500.0,0.00041917,31]
[313622908,1707487214335,-500.0,0.00041917,31]
[313622909,1707487214363,-500.0,0.00041917,31]
[313622910,1707487214390,-500.0,0.00041917,31]
[313622911,1707487214418,-500.0,0.00041917,31]
[313622912,1707487214447,-500.0,0.00041917,31]
[313622913,1707487214474,-500.0,0.00041917,31]
[313622914,1707487214502,-500.0,0.00041917,31]
[313622915,1707487214530,-500.0,0.00041917,31]
[313622916,1707487214561,-484.25953692,0.00041917,31]
[313622917,1707487214589,-500.0,0.00041917,31]
[313622918,1707487214616,-500.0,0.00041917,31]
[313622919,1707487214643,-500.0,0.00041917,31]
[313622920,1707487214672,-500.0,0.00041917,31]
[313622921,1707487214699,-500.0,0.00041917,31]
[313622922,1707487214726,-500.0,0.00041917,31]
[313622923,1707487214754,-500.0,0.00041917,31]
[313622924,1707487214781,-500.0,0.00041917,31]
[313622925,1707487214810,-500.0,0.00041917,31]
[313622926,1707487214837,-500.0,0.00041917,31]
[313622927,1707487214865,-500.0,0.00041917,31]
[313622928,1707487214892,-500.0,0.00041917,31]
[313622929,1707487214920,-500.0,0.00041917,31]
[313622930,1707487214947,-500.0,0.00041917,31]
[313622931,1707487214975,-500.0,0.00041917,31]
[313622932,1707487215003,-500.0,0.00041917,31]
[313622933,1707487215178,-500.0,0.00041917,31]
[313622934,1707487215210,-500.0,0.00041917,31]
[313622935,1707487215238,-500.0,0.00041917,31]
[313622936,1707487215266,-500.0,0.00041917,31]
[313622937,1707487215299,-500.0,0.00041917,31]
[313622938,1707487215328,-500.0,0.00041917,31]
[313622939,1707487215358,-500.0,0.00041917,31]
[313622940,1707487215387,-164.14413596,0.00041917,31]
[313622941,1707487215415,-224.32800723,0.00041917,31]
[313622942,1707487215444,-500.0,0.00041917,31]
[313622943,1707487215473,-527.71,0.00041917,31]
[313622944,1707487215502,-500.0,0.00041917,31]
[313622945,1707487215531,-500.0,0.00041917,31]
[313622946,1707487215560,-500.0,0.00041917,31]
[313622947,1707487215588,-500.0,0.00041917,31]
[313622948,1707487215616,-283.37183546,0.00041917,31]
[313622949,1707487215647,-366.63942251,0.00041917,31]
[313622950,1707487215675,-500.0,0.00041917,31]
[313622951,1707487215703,-500.0,0.00041917,31]
[313622952,1707487215732,-500.0,0.00041917,31]
[313622953,1707487215760,-500.0,0.00041917,31]
[313622954,1707487215787,-205.23242126,0.00041917,31]
[313622955,1707487215816,-515.19669262,0.00041917,31]
[313622956,1707487215844,-500.0,0.00041917,31]
[313622957,1707487215872,-500.0,0.00041917,31]
[313622958,1707487215901,-500.0,0.00041917,31]
[313622959,1707487215928,-500.0,0.00041917,31]
[313622960,1707487215956,-500.0,0.00041917,31]
[313622961,1707487215987,-500.0,0.00041917,31]
[313622962,1707487216015,-500.0,0.00041917,31]
[313622963,1707487216044,-500.0,0.00041917,31]
[313622964,1707487216072,-557.62908653,0.00041917,31]
[313622965,1707487216102,-514.51804618,0.00041917,31]
[313622966,1707487216132,-500.0,0.00041917,31]
[313622967,1707487216160,-500.0,0.00041917,31]
[313622968,1707487216189,-507.11849695,0.00041917,31]
[313622969,1707487216217,-500.0,0.00041917,31]
[313622970,1707487216245,-500.0,0.00041917,31]
[313622971,1707487216274,-500.0,0.00041917,31]
[313622972,1707487216303,-500.0,0.00041917,31]
[313622973,1707487216332,-1417.37,0.00041917,31]
[313622974,1707487216359,-500.0,0.00041917,31]
[313622975,1707487216389,-500.0,0.00041917,31]
[313622976,1707487216418,-500.0,0.00041917,31]
[313622977,1707487216447,-500.0,0.00041917,31]
[313622978,1707487216476,-500.0,0.00041917,31]
[313622979,1707487216504,-500.0,0.00041917,31]
[313622980,1707487216531,-500.0,0.00041917,31]
[313622981,1707487216560,-508.9648953,0.00041917,31]
[313622982,1707487216588,-572.43147882,0.00041917,31]
[313622983,1707487216615,-500.0,0.00041917,31]
[313622984,1707487216641,-500.0,0.00041917,31]
[313622985,1707487216669,-500.0,0.00041917,31]
[313622986,1707487216696,-511.18847866,0.00041917,31]
[313622987,1707487216723,-500.0,0.00041917,31]
[313622988,1707487216751,-500.0,0.00041917,31]
[313622989,1707487216779,-500.0,0.00041917,31]
[313622990,1707487216808,-500.0,0.00041917,31]
[313622991,1707487216835,-1448.12,0.00041917,31]
[313622992,1707487216863,-500.0,0.00041917,31]
[313622993,1707487216890,-500.0,0.00041917,31]
[313622994,1707487216917,-517.32343325,0.00041917,31]
[313622995,1707487216945,-500.0,0.00041917,31]
[313622996,1707487216972,-500.0,0.00041917,31]
[313622997,1707487217000,-280.28242661,0.00041917,31]
[313622998,1707487217027,-593.30356255,0.00041917,31]
[313622999,1707487217056,-500.0,0.00041917,31]
[313623000,1707487217084,-500.0,0.00041917,31]
[313623001,1707487217112,-500.0,0.00041917,31]
[313623002,1707487217139,-500.0,0.00041917,31]
[313623003,1707487217167,-500.0,0.00041917,31]
[313623004,1707487217195,-500.0,0.00041917,31]
[313623005,1707487217258,-500.0,0.00041917,31]
[313623006,1707487217285,-912.23,0.00041917,31]
[313623007,1707487217315,-500.0,0.00041917,31]
[313623008,1707487217345,-500.0,0.00041917,31]
[313623009,1707487217374,-500.0,0.00041917,31]
[313623010,1707487217403,-500.0,0.00041917,31]
[313623011,1707487217431,-500.0,0.00041917,31]
[313623012,1707487217460,-500.0,0.00041917,31]
[313623013,1707487217489,-500.0,0.00041917,31]
[313623014,1707487217521,-870.43,0.00041917,31]
[313623015,1707487217549,-500.0,0.00041917,31]
[313623016,1707487217577,-500.0,0.00041917,31]
[313623017,1707487217604,-500.0,0.00041917,31]
[313623018,1707487217631,-500.0,0.00041917,31]
[313623019,1707487217658,-508.42252652,0.00041917,31]
[313623020,1707487217686,-500.0,0.00041917,31]
[313623021,1707487217713,-500.0,0.00041917,31]
[313623022,1707487217740,-500.0,0.00041917,31]
[313623023,1707487217767,-500.0,0.00041917,31]
[313623024,1707487217796,-500.0,0.00041917,31]
[313623025,1707487217823,-500.0,0.00041917,31]
[313623026,1707487217850,-500.0,0.00041917,31]
[313623027,1707487217877,-500.0,0.00041917,31]
[313623028,1707487217906,-500.0,0.00041917,31]
[313623029,1707487217934,-500.0,0.00041917,31]
[313623030,1707487217962,-500.0,0.00041917,31]
[313623031,1707487217989,-500.0,0.00041917,31]
[313623032,1707487218016,-500.0,0.00041917,31]
[313623033,1707487218045,-500.0,0.00041917,31]
[313623034,1707487218075,-500.0,0.00041917,31]
[313623035,1707487218103,-500.0,0.00041917,31]
[313623036,1707487218131,-500.0,0.00041917,31]
[313623037,1707487218159,-500.0,0.00041917,31]
[313623038,1707487218187,-500.0,0.00041917,31]
[313623039,1707487218219,-500.0,0.00041917,31]
[313623040,1707487218247,-500.0,0.00041917,31]
[313623041,1707487218274,-500.0,0.00041917,31]
[313623042,1707487218302,-500.0,0.00041917,31]
[313623043,1707487218329,-500.0,0.00041917,31]
[313623044,1707487218357,-500.0,0.00041917,31]
[313623045,1707487218386,-620.97,0.00041917,31]
[313623046,1707487218415,-500.0,0.00041917,31]
[313623047,1707487218444,-500.0,0.00041917,31]
[313623048,1707487218473,-500.0,0.00041917,31]
[313623049,1707487218501,-500.0,0.00041917,31]
[313623050,1707487218530,-500.0,0.00041917,31]
[313623051,1707487218559,-500.0,0.00041917,31]
[313623052,1707487218586,-500.0,0.00041917,31]
[313623053,1707487218614,-500.0,0.00041917,31]
[313623054,1707487218641,-564.88,0.00041917,31]
[313623055,1707487218669,-500.0,0.00041917,31]
[313623056,1707487218696,-500.0,0.00041917,31]
[313623057,1707487218723,-500.0,0.00041917,31]
[313623058,1707487218751,-500.0,0.00041917,31]
[313623059,1707487218778,-500.0,0.00041917,31]
[313623060,1707487218805,-500.0,0.00041917,31]
[313623061,1707487218832,-500.0,0.00041917,31]
[313623062,1707487218859,-500.0,0.00041917,31]
[313623063,1707487218886,-500.0,0.00041917,31]
[313623064,1707487218913,-500.0,0.00041917,31]
[313623065,1707487218941,-500.0,0.00041917,31]
[313623066,1707487218970,-650.82,0.00041917,31]
[313623067,1707487218997,-500.0,0.00041917,31]
[313623068,1707487219025,-500.0,0.00041917,31]
[313623069,1707487219053,-500.0,0.00041917,31]
[313623070,1707487219080,-500.0,0.00041917,31]
[313623071,1707487219108,-500.0,0.00041917,31]
[313623072,1707487219136,-500.0,0.00041917,31]
[313623073,1707487219165,-500.0,0.00041917,31]
[313623074,1707487219192,-500.0,0.00041917,31]
[313623075,1707487219219,-580.05609598,0.00041917,31]
[313623076,1707487219249,-500.0,0.00041917,31]
[313623077,1707487219276,-500.0,0.00041917,31]
[313623078,1707487219303,-500.0,0.00041917,31]
[313623079,1707487219331,-500.0,0.00041917,31]
[313623080,1707487219359,-2937.23,0.00041917,31]
[313623081,1707487219386,-514.92589443,0.00041917,31]
[313623082,1707487219414,-500.0,0.00041917,31]
[313623083,1707487219442,-500.0,0.00041917,31]
[313623084,1707487219470,-500.0,0.00041917,31]
[313623085,1707487219497,-496.82627103,0.00041917,31]
[313623086,1707487219526,-500.0,0.00041917,31]
[313623087,1707487219556,-500.0,0.00041917,31]
[313623088,1707487219585,-500.0,0.00041917,31]
[313623089,1707487219613,-500.0,0.00041917,31]
[313623090,1707487219646,-500.0,0.00041917,31]
[313623091,1707487219674,-500.0,0.00041917,31]
[313623092,1707487219702,-500.0,0.00041917,31]
[313623093,1707487219729,-500.0,0.00041917,31]
[313623094,1707487219756,-500.0,0.00041917,31]
[313623095,1707487219783,-703.51,0.00041917,31]
[313623096,1707487219811,-569.08,0.00041917,31]
[313623097,1707487219838,-500.0,0.00041917,31]